[Event "87th Spanish Championship 2022"]
[Site "Linares"]
[Date "2022.08.15"]
[Round "6.11"]
[White "Merario Alarcon, Andres"]
[Black "Fernandez Lopez, Ruben"]
[Result "1-0"]
[ECO "D35"]
[WhiteElo "2418"]
[BlackElo "2324"]
[Annotator "TA"]
[PlyCount "95"]
[EventDate "2022.08.11"]
[EventType "swiss"]
[EventCountry "ESP"]
[SourceTitle "playchess.com"]
[Source "ChessBase"]
[SourceQuality "1"]
[TimeControl "5400+30"]

{[%evp 17,95,11,22,2,4,0,8,0,15,0,48,40,52,61,80,72,69,75,79,91,81,71,70,77,48,68,69,0,0,0,0,0,16,16,17,0,8,0,3,0,0,0,0,0,0,0,0,0,0,0,0,0,0,0,0,0,0,0,0,0,0,0,0,0,0,0,0,0,8,8,255,255,148,0,0,0,161,139,29998,29999]} 1. d4 {[%emt 0:00:09]} d5 {[%emt 0:00:14]} 2. c4 {[%emt 0:00:17]} e6 {[%emt 0:00:06]} 3. Nc3 {[%emt 0:00:12]} Nf6 {[%emt 0:00:07]} 4. cxd5 {[%emt 0:00:32]} exd5 {[%emt 0:00:12]} 5. Bg5 {[%emt 0:00:05]} Be7 {[%emt 0:00:11]} 6. e3 {[%emt 0:00:14]} O-O {[%emt 0:00:08]} 7. Bd3 {[%emt 0:00:18]} Re8 {[%emt 0:00:14]} 8. Nge2 {[%emt 0:02:04]} Nbd7 {[%emt 0:00:49][%cal Bb8d7,Bd7f8,Bf8e6][%mdl 32]} 9. O-O {[%emt 0:01:10] 9.Qc2 is not played anymore.} Nf8 {[%emt 0:00:31]} 10. Rc1 {[%emt 0:07:42] D35: Queen's Gambit Declined: Exchange Variation.} Ne6 {[%emt 0:14:33]} 11. Bh4 {[%emt 0:00:53]} c6 {[%emt 0:01:32]} 12. f3 {[%emt 0:01:47] The position is equal.} g6 {[%emt 0:04:29]} 13. Bf2 {[%emt 0:03:29] [#]} c5 $146 {[%emt 0:09:40]} (13... Nh5 $11) ({Predecessor:} 13... Ng7 14. e4 Be6 15. Nf4 Rc8 16. Nxe6 Nxe6 17. Ne2 Qd7 18. e5 Nh5 19. Be3 c5 {1-0 (28) Collins,A-Navratil,J (1846) Prague 2007}) 14. dxc5 $14 {[%emt 0:10:02]} Bxc5 {[%emt 0:00:52]} 15. Bc2 {[%emt 0:01:24]} b5 {[%emt 0:09:26]} 16. Bb3 {[%emt 0:06:25]} Bb7 {[%emt 0:06:00]} 17. Nxb5 {[%emt 0:03:10]} Qb6 {[%emt 0:03:37][%csl LRb5,LRe3]} 18. Nbd4 {[%emt 0:02:37]} Ba6 {[%emt 0:00:33]} 19. Re1 {[%emt 0:09:37]} Bxe2 {[%emt 0:01:05]} 20. Rxe2 {[%emt 0:00:11]} Nxd4 {[%emt 0:00:09]} 21. exd4 {[%emt 0:00:12]} Rxe2 {[%emt 0:00:05]} 22. Qxe2 {[%emt 0:05:05]} (22. dxc5 $14 Qe6 23. Kf1) 22... Bxd4 $11 {[%emt 0:00:05]} 23. Rd1 {[%emt 0:01:16]} Bxf2+ {[%emt 0:04:27]} 24. Qxf2 {[%emt 0:00:02]} Qd6 {[%emt 0:00:49]} 25. Qd4 {[%emt 0:01:28][%cal Rb3d5]} Kg7 {[%emt 0:02:39]} 26. Re1 {[%emt 0:03:15]} (26. Bxd5 Rd8 27. Qxa7 Nxd5 $17) 26... a5 {[%emt 0:02:30]} 27. g4 {[%emt 0:03:23] Threatens to win with g5.} h6 {[%emt 0:00:12]} ({But not} 27... Qb4 28. Qxb4 axb4 29. Re7 $16 (29. g5 Nh5 $14)) 28. Kg2 {[%emt 0:03:30]} Rb8 {[%emt 0:00:40]} 29. Qa7 $1 {[%emt 0:07:33]} Qb4 {[%emt 0:05:43]} 30. Re7 {[%emt 0:02:28]} Qd2+ {[%emt 0:00:06]} 31. Qf2 {[%emt 0:00:23]} Qc1 {[%emt 0:00:49][%cal Oa5a4]} 32. Rxf7+ {[%emt 0:07:42]} Kxf7 {[%emt 0:00:29]} 33. Qa7+ {[%emt 0:00:03]} Ke6 {[%emt 0:00:11]} 34. Qxb8 {[%emt 0:00:07]} Qxb2+ {[%emt 0:00:21][%mdl 4096] Endgame KQB-KQN} 35. Kh3 {[%emt 0:00:25][%cal Ob3d5] Hoping for Bxd5+!} Qc3 {[%emt 0:02:23]} 36. Qf4 {[%emt 0:01:24]} g5 {[%emt 0:01:23]} 37. Qf5+ {[%emt 0:00:33]} Kd6 {[%emt 0:00:20]} 38. Kg2 {[%emt 0:01:02]} Kc5 {[%emt 0:03:34]} 39. Qc8+ {[%emt 0:01:30]} Kd4 {[%emt 0:00:23]} 40. Qe6 {[%emt 0:01:53] Really sharp!} Qd2+ {[%emt 0:00:31]} 41. Kg3 {[%emt 0:03:17]} Qf4+ {[%emt 0:00:54]} 42. Kg2 {[%emt 0:00:06]} Kc3 {[%emt 0:00:42]} 43. Qc6+ {[%emt 0:01:23]} Kb2 $2 {[%emt 0:00:34]} (43... Kd2 $11) 44. Qc2+ $18 {[%emt 0:00:26]} Ka3 {[%emt 0:00:14] [#]} 45. Qc5+ {[%emt 0:02:14]} (45. Bxd5 $1 $16 {[%csl Ga2,Gd5][%cal Rc2b3][%mdl 512]} Qe3 46. Bc6) 45... Kb2 $11 {[%emt 0:00:05]} 46. Qc2+ $2 {[%emt 0:00:07]} (46. Qf2+ $11 Kc3 47. Qc5+ Kd3 48. Qb5+ (48. Qxa5 Qe5 $16) 48... Ke3 49. Bxd5) 46... Ka3 $1 $18 {[%emt 0:00:03] [#]} 47. Bxd5 $1 {[%emt 0:00:46][%csl Ga2,Gd5][%cal Rc2b3]} Kb4 {[%emt 0:00:38][%mdl 8192]} (47... Qe3 $16 48. Bc6 h5) 48. a3+ $1 {[%emt 0:00:43] Weighted Error Value: White=0.08 (flawless) /Black=0.38} 1-0

[Event "87th Spanish Championship 2022"]
[Site "Linares"]
[Date "2022.08.15"]
[Round "6.12"]
[White "Lianes Garcia, Marcos"]
[Black "De La Cruz Revilla, Miguel"]
[Result "1-0"]
[ECO "B42"]
[WhiteElo "2411"]
[BlackElo "2213"]
[Annotator "TA"]
[PlyCount "65"]
[EventDate "2022.08.11"]
[EventType "swiss"]
[EventCountry "ESP"]
[SourceTitle "playchess.com"]
[Source "ChessBase"]
[SourceQuality "1"]
[TimeControl "5400+30"]

{[%evp 11,64,25,27,31,68,29,82,93,91,82,91,91,84,56,55,68,50,59,53,57,52,53,80,76,60,53,37,58,191,180,150,210,193,181,245,59,63,68,69,46,209,195,477,458,1224,1155,1780,1608,29987,289,29988,29989,29998,29999,29999]} 1. e4 {[%emt 0:00:06]} c5 {[%emt 0:02:11]} 2. Nf3 {[%emt 0:00:24]} e6 {[%emt 0:00:06]} 3. d4 {[%emt 0:00:31]} cxd4 {[%emt 0:00:03]} 4. Nxd4 {[%emt 0:00:08]} a6 {[%emt 0:00:05]} 5. Bd3 {[%emt 0:00:21]} Bc5 {[%emt 0:00:07]} 6. Nb3 {[%emt 0:00:33]} Ba7 {[%emt 0:00:03]} 7. Qg4 {[%emt 0:01:10] B42: Sicilian: Kan Variation: 5 Bd3.} Qf6 {[%emt 0:00:15]} 8. f4 {[%emt 0:00:47] Active counter play!} d6 {[%emt 0:08:31] Against e5} (8... d5 $11) 9. Nc3 $16 {[%emt 0:05:30] Hoping for Nd5. White is better.} h5 {[%emt 0:01:50]} 10. Qg3 {[%emt 0:10:32]} h4 {[%emt 0:02:56]} 11. Qf3 {[%emt 0:00:32][%cal Oe4e5]} Nc6 {[%emt 0:00:54] Prevents e5.} 12. Be3 {[%emt 0:11:27] [#]} Ne5 $146 {[%emt 0:29:49]} ({Predecessor:} 12... g5 13. Bxa7 Rxa7 14. f5 Qh6 15. O-O Nge7 16. Rad1 Ra8 17. Be2 exf5 18. exf5 Bxf5 {1-0 (37) Almasi,Z (2650)-Votava,J (2505) Germany 2004}) 13. Qe2 {[%emt 0:07:49]} Bxe3 {[%emt 0:04:08]} 14. Qxe3 {[%emt 0:00:43]} Nxd3+ {[%emt 0:00:14]} 15. cxd3 {[%emt 0:00:32]} Ne7 {[%emt 0:04:36]} 16. O-O-O {[%emt 0:21:01]} Bd7 {[%emt 0:15:01]} 17. Kb1 {[%emt 0:03:26]} b5 {[%emt 0:05:19]} 18. Rhf1 {[%emt 0:15:08]} O-O {[%emt 0:14:26]} 19. g4 {[%emt 0:08:06]} hxg3 {[%emt 0:01:12]} (19... a5 $14) 20. hxg3 $18 {[%emt 0:00:23][%cal Bh2g3,Bg3g4][%mdl 32]} b4 {[%emt 0:02:05]} 21. Ne2 {[%emt 0:00:08]} a5 {[%emt 0:00:42] [#]} 22. g4 $1 {[%emt 0:01:38]} g6 {[%emt 0:01:26] [#]} (22... a4 {was worth a try.}) 23. e5 $2 {[%emt 0:06:16]} (23. f5 $1 $18) 23... Nd5 $14 {[%emt 0:01:18]} 24. Qg3 {[%emt 0:01:14]} dxe5 {[%emt 0:00:36]} 25. fxe5 {[%emt 0:00:11]} (25. Nc5 $5 {[%cal Rc5d7]} Qe7 26. Nxd7 Qxd7 27. fxe5 $11) 25... Qg5 {[%emt 0:00:12]} (25... Qe7 $1 $14) 26. Nc5 $18 {[%emt 0:00:19][%cal Bb3c5,Bc5e4,Be4g5][%mdl 32]} Bc6 {[%emt 0:02:11]} (26... Qe7) 27. Ne4 {[%emt 0:00:35] Pair of Knights!} Qe3 {[%emt 0:00:31] [#]} (27... Qe7 $142 28. Nd4 Nc3+ 29. bxc3 bxc3) 28. Qh4 $1 {[%emt 0:01:46][%cal Of1h1] Intending Rh1! and mate.} Kg7 {[%emt 0:00:14] [#]} (28... f6 29. exf6) 29. Ng5 $1 {[%emt 0:00:12][%csl Gg5][%cal Rh4h7]} Rh8 {[%emt 0:00:47] Prevents Qh7+.} (29... Qxg5 30. Qxg5) 30. Rxf7+ {[%emt 0:00:06]} Kg8 {[%emt 0:00:06]} 31. Rh7 {[%emt 0:00:12] White mates.} Rxh7 {[%emt 0:00:07]} 32. Qxh7+ {[%emt 0:00:05]} Kf8 {[%emt 0:00:05]} 33. Qf7# {[%emt 0:00:04] Weighted Error Value: White=0.15 (very precise) /Black=0.55} 1-0

[Event "87th Spanish Championship 2022"]
[Site "Linares"]
[Date "2022.08.15"]
[Round "6.13"]
[White "Tejedor Fuente, Enrique"]
[Black "Jimenez Bernal, Francisco"]
[Result "1/2-1/2"]
[ECO "B96"]
[WhiteElo "2419"]
[BlackElo "2149"]
[Annotator "TA"]
[PlyCount "85"]
[EventDate "2022.08.11"]
[EventType "swiss"]
[EventCountry "ESP"]
[SourceTitle "playchess.com"]
[Source "ChessBase"]
[SourceQuality "1"]
[TimeControl "5400+30"]

{[%evp 19,85,32,12,0,0,0,0,0,0,0,0,-29,-47,-73,-70,-72,-58,-59,-67,-63,-68,-52,-25,-20,-22,-83,-85,-198,-186,-230,-34,-32,0,0,30,36,20,0,0,0,0,-15,0,-6,0,-46,8,8,7,11,8,-92,-39,-98,72,62,51,18,20,-18,-18,-254,-243,-277,-283,-270,-214,-166]} 1. e4 {[%emt 0:01:36]} c5 {[%emt 0:00:09]} 2. Nf3 {[%emt 0:00:19]} d6 {[%emt 0:00:30]} 3. d4 {[%emt 0:00:15]} cxd4 {[%emt 0:00:07]} 4. Nxd4 {[%emt 0:00:05]} Nf6 {[%emt 0:00:06]} 5. Nc3 {[%emt 0:00:05]} a6 {[%emt 0:00:08]} 6. Bg5 {[%emt 0:00:16]} e6 {[%emt 0:00:29]} 7. f4 {[%emt 0:00:55]} b5 {[%emt 0:00:24]} 8. e5 {[%emt 0:15:12]} dxe5 {[%emt 0:00:16]} 9. fxe5 {[%emt 0:00:06]} Qc7 {[%emt 0:00:05]} 10. exf6 {[%emt 0:05:04]} Qe5+ {[%emt 0:00:21]} 11. Qe2 {[%emt 0:02:10] B96: Sicilian Najdorf: 6 Bg5 e6 7 f4, lines other than 7...Qb6 and 7...Be7.} Qxg5 {[%emt 0:00:21]} 12. Ne4 {[%emt 0:05:47]} (12. Qe4 Ra7 13. Nf3 Qxf6 $15) 12... Qe5 {[%emt 0:07:48]} 13. O-O-O $1 {[%emt 0:07:30] The position is equal.} Ra7 $1 {[%emt 0:04:35]} 14. Nf3 {[%emt 0:15:27]} Qf4+ {[%emt 0:01:43]} 15. Kb1 {[%emt 0:05:01]} ({Don't play} 15. Qd2 Qxd2+ 16. Nfxd2 (16. Rxd2 gxf6 17. Nd6+ Bxd6 $17) 16... gxf6 17. Nxf6+ Ke7 $15) 15... Rd7 {[%emt 0:00:34][%cal Of4e4]} 16. Rxd7 {[%emt 0:01:00]} Nxd7 {[%emt 0:02:01]} 17. g3 {[%emt 0:02:10]} Qc7 {[%emt 0:01:54]} 18. fxg7 {[%emt 0:01:07]} Bxg7 {[%emt 0:00:08]} 19. Qd2 {[%emt 0:01:29]} O-O $1 {[%emt 0:07:27] ...Bb7 is the strong threat.} 20. Qd6 {[%emt 0:01:08]} Qxd6 {[%emt 0:05:50]} (20... Qd8 {keeps more tension.} 21. Bd3 Bb7 22. Rf1 Bd5) 21. Nxd6 {[%emt 0:00:13] [#]} Nc5 $146 {[%emt 0:00:19]} ({Predecessor:} 21... Nb6 22. Nxc8 Rxc8 23. c3 Na4 24. Bd3 Nxb2 25. Bc2 Nc4 {0-1 (25) Stein,L-Sakharov,Y Kiev 1960}) 22. Bd3 {[%emt 0:05:46]} (22. Nxc8 $11 Rxc8 23. c3) 22... Bd7 $17 {[%emt 0:14:00]} 23. Ng5 {[%emt 0:07:17] [#]} (23. Ne4 $17 Nxd3 24. cxd3) 23... f5 $1 $19 {[%emt 0:04:47]} 24. Rd1 {[%emt 0:02:33]} e5 $2 {[%emt 0:07:41]} (24... Bf6 $19 25. Nf3 Bc6) 25. Be2 $15 {[%emt 0:00:27][%cal Od6b7]} e4 {[%emt 0:04:40]} (25... h6 $5 {[%cal Rh6g5]} 26. Nf3 Be6 $15) 26. Nb7 {[%emt 0:08:51] Pair of Knights!} Ne6 {[%emt 0:08:43]} 27. Rxd7 {[%emt 0:02:28]} Nxg5 {[%emt 0:00:02]} 28. a4 {[%emt 0:00:27]} bxa4 {[%emt 0:03:21]} 29. Bxa6 {[%emt 0:00:12]} Nf3 {[%emt 0:02:20]} 30. Nc5 {[%emt 0:04:22]} Rb8 {[%emt 0:02:06]} 31. Nxa4 {[%emt 0:01:59]} Nxh2 {[%emt 0:01:36]} 32. c3 {[%emt 0:01:07]} (32. Rd5 $11 {is more appropriate.}) 32... Be5 {[%emt 0:02:01]} ({Black should play} 32... Ng4 $1 $15) 33. Bc4+ $11 {[%emt 0:00:15]} Kh8 {[%emt 0:00:14]} 34. Rf7 $1 {[%emt 0:00:11]} Nf3 {[%emt 0:06:45] aiming for ...Nd2+.} 35. Be2 {[%emt 0:00:07]} (35. Kc1 $11 {keeps the balance.}) 35... Ng1 {[%emt 0:02:35]} (35... Bxg3 $17 {Threatens to win with ...f4.} 36. Nc5 Ng1) 36. Rxf5 {[%emt 0:01:49]} ({Better is} 36. Bh5 $1 $15) 36... Re8 $2 {[%emt 0:00:01]} (36... Bxg3 $17 {and life is bright.} 37. Bg4 Rg8) 37. Bh5 {[%emt 0:00:46]} Re7 {[%emt 0:01:08]} 38. Rf1 {[%emt 0:00:21]} Nh3 {[%emt 0:01:17]} 39. Nc5 {[%emt 0:03:22]} Bxg3 {[%emt 0:00:25] Strongly threatening ...Nf4.} 40. b4 $2 {[%emt 0:00:43] White does not recover from this.} (40. Rf8+ $11 {and White stays safe.} Kg7 41. Rf5) 40... Nf4 $19 {[%emt 0:01:14]} 41. Bg4 {[%emt 0:00:30] [#]} e3 $1 {[%emt 0:01:35]} 42. Kc2 {[%emt 0:00:30]} e2 {[%emt 0:00:55]} 43. Bxe2 {[%emt 0:00:01] Weighted Error Value: White=0.35/Black=0.29 (precise)} 1/2-1/2

[Event "87th Spanish Championship 2022"]
[Site "Linares"]
[Date "2022.08.15"]
[Round "6.14"]
[White "Alshameary Puente, Ismael"]
[Black "Alonso Garcia, Aaron"]
[Result "0-1"]
[ECO "E16"]
[WhiteElo "2352"]
[BlackElo "2374"]
[Annotator "TA"]
[PlyCount "130"]
[EventDate "2022.08.11"]
[EventType "swiss"]
[EventCountry "ESP"]
[SourceTitle "playchess.com"]
[Source "ChessBase"]
[SourceQuality "1"]
[TimeControl "5400+30"]

{[%evp 14,130,18,10,29,18,28,22,22,19,20,2,41,37,56,30,31,27,55,28,35,25,47,31,54,55,68,47,70,18,85,57,67,66,100,82,77,50,74,19,24,4,34,35,43,25,25,0,0,0,0,0,0,0,0,0,0,0,0,0,0,0,3,0,0,0,0,0,0,0,0,0,-3,-22,-20,-34,-22,-22,-19,-31,-20,-21,-29,-33,-33,-33,-21,-81,-33,-33,-33,-33,-41,-47,-42,-62,-55,-77,-74,-128,-86,-153,-142,-160,-84,-113,-69,-500,-484,-1037,-1020,-1016,-1020,-999,-945,-878,-863,-864,-810]} 1. d4 {[%emt 0:00:15]} Nf6 {[%emt 0:05:15]} 2. c4 {[%emt 0:00:08]} e6 {[%emt 0:00:38]} 3. Nf3 {[%emt 0:00:07]} Bb4+ {[%emt 0:01:06]} 4. Bd2 {[%emt 0:00:38]} Qe7 {[%emt 0:00:07]} 5. e3 {[%emt 0:00:35]} b6 {[%emt 0:00:42]} 6. Bd3 {[%emt 0:00:50]} Bb7 {[%emt 0:00:08]} 7. O-O {[%emt 0:04:26]} Bxd2 {[%emt 0:00:51]} 8. Nbxd2 {[%emt 0:00:23]} d6 {[%emt 0:00:21] E11: Bogo-Indian.} 9. e4 {[%emt 0:01:48]} e5 {[%emt 0:00:03]} 10. Re1 {[%emt 0:00:16]} O-O {[%emt 0:00:31] [#] The position is equal.} 11. Rb1 $146 {[%emt 0:02:32]} ({Predecessor:} 11. Nb1 c5 12. d5 Nbd7 13. Nc3 Nh5 14. g3 g6 15. Nh4 Ng7 16. Qc2 Nf6 17. a3 {0-1 (52) Mohammad Fahad,R (2409)-Martinez Alcantara,J (2598) Chess.com INT 2022}) 11... a5 {[%emt 0:03:49]} 12. Rc1 {[%emt 0:09:51]} c5 {[%emt 0:04:23]} 13. d5 {[%emt 0:01:37]} Bc8 {[%emt 0:01:06]} 14. Nf1 {[%emt 0:11:18]} Nh5 {[%emt 0:00:54]} 15. Ne3 {[%emt 0:08:20]} g6 {[%emt 0:00:42]} 16. g3 {[%emt 0:04:36]} Ng7 {[%emt 0:01:29]} 17. Nh4 {[%emt 0:07:21]} a4 {[%emt 0:02:42]} 18. a3 {[%emt 0:02:41]} Ra7 {[%emt 0:03:52]} 19. Qd2 {[%emt 0:07:06]} Qd8 {[%emt 0:04:10]} 20. Nhg2 {[%emt 0:00:41]} Re7 {[%emt 0:07:35]} 21. f3 {[%emt 0:09:22]} ({White should try} 21. Qc2 $14) 21... Qe8 {[%emt 0:07:31]} (21... f5 $11 {keeps the balance.}) 22. Nd1 {[%emt 0:07:10]} (22. Ng4 {seems wilder.} f5 23. Nh6+ Kh8 24. Qg5) 22... Na6 {[%emt 0:03:05]} 23. Nc3 {[%emt 0:00:48]} Nc7 {[%emt 0:00:02]} 24. Rb1 {[%emt 0:01:14]} f5 {[%emt 0:07:23][%cal Of5f4]} 25. Rf1 {[%emt 0:03:32]} Ref7 {[%emt 0:02:07]} 26. Qc2 {[%emt 0:01:44]} ({White should play} 26. b3 $16) 26... Bd7 {[%emt 0:00:20]} (26... f4 {looks sharper.} 27. gxf4 Nh5 28. f5 gxf5 29. Kh1 fxe4 30. fxe4 Bg4) 27. b3 {[%emt 0:00:53][%cal Rb3a4]} fxe4 {[%emt 0:01:43]} (27... f4 {with more complications.} 28. gxf4 axb3 29. Rxb3 Bh3) 28. fxe4 {[%emt 0:00:52][%cal Rb3a4]} axb3 {[%emt 0:01:05]} 29. Qxb3 {[%emt 0:01:11]} (29. Rxb3 {is interesting.} Na8 30. Ne3 Nh5 31. Rxf7 Rxf7 32. Qd2) 29... Rxf1+ {[%emt 0:00:10]} 30. Rxf1 {[%emt 0:00:39]} Rxf1+ {[%emt 0:00:06]} 31. Bxf1 {[%emt 0:00:08]} Qb8 {[%emt 0:00:04]} 32. Ne3 {[%emt 0:03:06]} Nge8 {[%emt 0:01:41]} 33. Na4 {[%emt 0:05:07]} Na8 {[%emt 0:02:37]} 34. Nc3 {[%emt 0:02:36]} Nf6 {[%emt 0:00:38]} 35. Bd3 {[%emt 0:00:13]} Kf7 {[%emt 0:00:14]} 36. Nb5 {[%emt 0:00:18]} Ke7 {[%emt 0:00:13]} 37. Nd1 {[%emt 0:01:48]} Qf8 {[%emt 0:04:22]} 38. Nbc3 {[%emt 0:02:14]} h5 {[%emt 0:04:13][%cal Bh7h5,Bh5h4][%mdl 32]} 39. Qb2 {[%emt 0:00:07]} Qh6 {[%emt 0:00:12]} 40. Qe2 {[%emt 0:00:15]} Qc1 {[%emt 0:05:21]} 41. Qb2 {[%emt 0:00:13]} Qg5 {[%emt 0:00:05]} 42. Kg2 {[%emt 0:01:58]} h4 {[%emt 0:00:19]} 43. Qf2 {[%emt 0:00:10]} Ng4 {[%emt 0:05:11] Really sharp!} 44. Qe1 {[%emt 0:00:04]} Nc7 {[%emt 0:05:53]} 45. Kg1 {[%emt 0:01:04]} hxg3 {[%emt 0:02:49]} 46. Qxg3 {[%emt 0:00:01] [#] Hoping for h3.} Qh6 {[%emt 0:00:22]} 47. Be2 $1 {[%emt 0:00:21]} Nf6 {[%emt 0:00:24]} 48. Qe3 {[%emt 0:00:05]} g5 {[%emt 0:01:41]} 49. Nf2 {[%emt 0:00:16]} Nce8 {[%emt 0:00:27]} 50. Ncd1 {[%emt 0:01:49]} (50. Bd1 $11) 50... Qh4 {[%emt 0:01:02]} (50... Ng7 $17) 51. Qg3 $15 {[%emt 0:00:29]} Qf4 {[%emt 0:00:01]} 52. Ne3 {[%emt 0:00:31]} Ng7 {[%emt 0:00:06]} 53. Qf3 {[%emt 0:00:29]} Be8 {[%emt 0:02:16]} 54. Ng2 {[%emt 0:00:41]} Qc1+ {[%emt 0:00:41]} 55. Bf1 $1 {[%emt 0:00:01]} Bg6 {[%emt 0:01:13]} 56. h4 {[%emt 0:00:58]} (56. Qe3 $142 Qxe3 57. Nxe3) 56... Bh5 {[%emt 0:01:55]} 57. Qd3 {[%emt 0:00:25]} (57. Qe3 $142 Qxe3 58. Nxe3) 57... g4 $17 {[%emt 0:00:25]} ({Not} 57... gxh4 58. Nxh4 Qg5+ 59. Ng2 $17) 58. Kh2 {[%emt 0:00:36]} Bg6 {[%emt 0:00:59]} (58... Qb2 $142 59. Qe3 Qd4) 59. Be2 {[%emt 0:00:15]} Qb2 {[%emt 0:00:43] And now ...Ngh5 would win. 0x0.0020b3d2da60dp-1022s more active pieces.} 60. Kg1 $2 {[%emt 0:00:27][%mdl 8192] Now White is beyond hope.} (60. Qe3 $15) 60... Ngh5 $19 {[%emt 0:01:24] Black is clearly winning.} 61. Nxg4 {[%emt 0:00:46]} (61. Nd1 $142 Qa2 62. Nc3 Qxa3 63. Qd2) 61... Bxe4 {[%emt 0:01:55]} 62. Qe3 {[%emt 0:00:33]} Nxg4 {[%emt 0:00:13]} 63. Qxe4 {[%emt 0:00:20]} Qc1+ {[%emt 0:00:04]} 64. Bf1 {[%emt 0:00:23] [#]} Qxf1+ $3 {[%emt 0:00:03][%mdl 512]} 65. Kxf1 {[%emt 0:00:07]} Ng3+ {[%emt 0:00:01] Weighted Error Value: White=0.36/Black=0.09 (flawless)} 0-1

[Event "87th Spanish Championship 2022"]
[Site "Linares"]
[Date "2022.08.15"]
[Round "6.15"]
[White "Garcia Martin, Marta"]
[Black "Gonzalez Perez, Arian"]
[Result "1/2-1/2"]
[ECO "B30"]
[WhiteElo "2305"]
[BlackElo "2418"]
[Annotator "TA"]
[PlyCount "109"]
[EventDate "2022.08.11"]
[EventType "swiss"]
[EventCountry "ESP"]
[SourceTitle "playchess.com"]
[Source "ChessBase"]
[SourceQuality "1"]
[TimeControl "5400+30"]

{[%evp 12,109,28,22,27,27,27,30,27,16,35,16,35,29,34,38,51,54,56,56,48,21,35,43,37,34,52,29,60,55,64,58,57,58,56,45,72,22,16,0,4,8,9,6,7,-18,0,-35,-10,-30,-60,-110,-112,-122,-95,-99,-99,-170,-161,-181,-196,-170,-164,-169,-166,-247,-247,-231,-220,-247,-241,-247,-239,-325,-283,-370,-218,-212,-212,-210,-208,-198,459,459,459,459,452,434,606,606,1041,975,12840,7505,29965,29960,29978,29979,29984,29985]} 1. e4 c5 {[%emt 0:04:06]} 2. Nf3 {[%emt 0:00:42]} Nc6 {[%emt 0:00:06]} 3. Bb5 {[%emt 0:00:16]} e6 {[%emt 0:00:08]} 4. Nc3 {[%emt 0:02:11]} Nge7 {[%emt 0:07:01]} 5. d4 {[%emt 0:01:43]} cxd4 {[%emt 0:00:55]} 6. Nxd4 {[%emt 0:00:10]} Nxd4 {[%emt 0:04:27]} 7. Qxd4 {[%emt 0:00:07]} a6 {[%emt 0:00:11] B30: Sicilian: 2...Nc6 3 Bb5, lines without ...g6.} 8. Be2 {[%emt 0:00:11]} Nc6 {[%emt 0:00:10]} 9. Qd3 $1 {[%emt 0:01:04] 9.Qd3 scores better than 9.Qe3.} Qc7 {[%emt 0:01:55] Prevents Bf4. White has an edge.} 10. Qg3 {[%emt 0:01:29]} Qxg3 {[%emt 0:09:16]} 11. hxg3 {[%emt 0:00:06]} b5 {[%emt 0:00:21] Prevents Na4.} 12. Be3 {[%emt 0:01:59]} Bb7 {[%emt 0:01:44]} 13. a4 {[%emt 0:03:37]} b4 {[%emt 0:02:26]} 14. Nb1 {[%emt 0:00:05][%cal Bc3b1,Bb1d2,Bd2b3][%mdl 32] [#]} Ne7 $146 {[%emt 0:06:55]} ({Predecessor:} 14... Be7 15. Nd2 O-O 16. O-O-O d6 17. Nc4 Rad8 18. Bb6 Rd7 19. Kb1 h6 20. Rd2 Rc8 {1-0 (38) Baranowski,T (2470)-Troia,E (2237) ICCF email 2008}) 15. Nd2 {[%emt 0:06:44]} d5 {[%emt 0:01:05] Inhibits Nc4.} 16. exd5 {[%emt 0:19:55]} Nxd5 {[%emt 0:01:42]} 17. Bd4 {[%emt 0:00:03]} Nf6 {[%emt 0:01:56]} 18. f3 {[%emt 0:16:06]} Be7 {[%emt 0:00:43]} 19. Nb3 {[%emt 0:05:23]} O-O {[%emt 0:13:24]} 20. Bc5 {[%emt 0:08:43]} Rfe8 {[%emt 0:02:44][%cal Bf8e8,Be8e7,Be7c7][%mdl 32]} 21. Rh4 {[%emt 0:08:50]} Nd5 {[%emt 0:02:38]} 22. Bxe7 {[%emt 0:00:03]} Rxe7 {[%emt 0:00:11]} 23. Bd3 {[%emt 0:00:11]} g6 {[%emt 0:04:01]} 24. a5 {[%emt 0:08:16]} (24. Na5 $16) 24... Rc8 {[%emt 0:01:44]} 25. O-O-O {[%emt 0:01:22][%cal Ba1d1,Bd1d2,Bd2e2][%mdl 32]} Rec7 {[%emt 0:02:20]} 26. Rd2 {[%emt 0:04:26]} Kg7 {[%emt 0:02:29]} 27. Re2 {[%emt 0:04:22]} h5 {[%emt 0:01:03]} 28. Be4 {[%emt 0:01:19]} (28. Kd2 {is interesting.} Kf6 29. Rd4 Kg7 30. Ree4) 28... Rb8 {[%emt 0:04:48]} 29. Kb1 {[%emt 0:01:30]} Nf6 {[%emt 0:02:58]} 30. Bd3 {[%emt 0:00:15]} Bd5 {[%emt 0:00:38]} 31. Bxa6 {[%emt 0:03:04]} (31. Nc1 $15) 31... Bxb3 $17 {[%emt 0:00:08]} ({Of course not} 31... Ra8 $6 32. Bd3 $15) 32. cxb3 {[%emt 0:00:03]} Ra7 {[%emt 0:00:07]} 33. Bc4 {[%emt 0:00:19]} Rxa5 {[%emt 0:00:04]} 34. Rd4 {[%emt 0:00:26] [#]} (34. Rd2 $17) 34... Rg5 $1 $19 {[%emt 0:00:27]} 35. Kc2 {[%emt 0:01:43]} Rxg3 {[%emt 0:00:10]} 36. Kd2 {[%emt 0:00:13]} Rg5 {[%emt 0:02:01]} 37. Ke1 {[%emt 0:00:51]} Ra5 {[%emt 0:01:28]} 38. Rd6 {[%emt 0:01:06]} (38. Kf1 $142) 38... h4 {[%emt 0:02:27]} 39. Kf2 {[%emt 0:00:23]} Ra1 {[%emt 0:02:59]} 40. Rc6 {[%emt 0:00:34]} Rb7 {[%emt 0:00:29] Against Rc7} 41. Rc2 {[%emt 0:00:36]} Nh5 {[%emt 0:00:37]} 42. Ba6 {[%emt 0:00:24]} Rd7 {[%emt 0:01:01]} 43. Rb6 {[%emt 0:00:29]} g5 {[%emt 0:03:22]} (43... Ng3 $142 {...Rd5 is the strong threat.} 44. Be2 Rd4) 44. Be2 {[%emt 0:00:29]} Nf4 {[%emt 0:04:50] Strongly threatening ...h3.} 45. Rxb4 {[%emt 0:00:09]} Rh1 {[%emt 0:00:38] And now ...h3 would win.} 46. Rbc4 {[%emt 0:00:52]} Rh2 $4 {[%emt 0:04:02][%mdl 8192] [#]} (46... h3 $19 47. gxh3 Rh2+ 48. Ke1 Rxh3) 47. Rxf4 $1 $18 {[%emt 0:00:27][%mdl 512]} gxf4 {[%emt 0:04:30]} 48. Kg1 {[%emt 0:00:04]} Rxg2+ {[%emt 0:00:20]} 49. Kxg2 {[%emt 0:00:04][%mdl 4096] Endgame KRB-KR} e5 {[%emt 0:00:33]} 50. b4 {[%emt 0:01:09][%cal Bb3b4,Bb4b5,Bb5b6,Bb6b7][%mdl 32]} f5 {[%emt 0:00:06]} 51. b5 {[%emt 0:00:04]} e4 {[%emt 0:00:10]} 52. b6 {[%emt 0:00:07] White threatens Rc7 and mate.} Kf6 {[%emt 0:00:04]} 53. Kh3 {[%emt 0:01:37] White mates.} Ke5 {[%emt 0:00:28]} 54. Ba6 {[%emt 0:00:27]} exf3 {[%emt 0:01:52]} 55. b7 {[%emt 0:00:11][%mdl 32768] Weighted Error Value: White=0.13 (very precise) /Black=0.37. An unexpected result.} 1/2-1/2